[Event "Titled Tuesday Blitz March 21 Late 2023"]
[White "Barria Santos, Jose Guilherme"]
[Black "Kovacevic, Radmila"]
[WhiteFideId "1939300"]
[BlackFideId "933171"]
[WhiteElo "2301"]
[BlackElo "2194"]
[Result "0-1"]
[Round "07"]
[TimeControl "180+2"]
[Date "2023.03.21"]
[WhiteClock "0:00:04"]
[BlackClock "0:00:29"]

1. d4 {[%clk 0:03:00]}  d5 {[%clk 0:02:54]} 2. c4 {[%clk 0:03:01]}  dxc4 {[%clk 0:02:52]} 3. Nf3 {[%clk 0:02:58]}  c5 {[%clk 0:02:51]} 4. e4 {[%clk 0:02:54]}  cxd4 {[%clk 0:02:48]} 5. Nxd4 {[%clk 0:02:52]}  e5 {[%clk 0:02:47]} 6. Nf3 {[%clk 0:02:39]}  Qxd1+ {[%clk 0:02:45]} 7. Kxd1 {[%clk 0:02:40]}  Nc6 {[%clk 0:02:43]} 8. Bxc4 {[%clk 0:02:37]}  Nf6 {[%clk 0:02:41]} 9. Nc3 {[%clk 0:02:34]}  Bg4 {[%clk 0:02:38]} 10. h3 {[%clk 0:02:25]}  Bh5 {[%clk 0:02:36]} 11. Bg5 {[%clk 0:02:02]}  O-O-O+ {[%clk 0:02:16]} 12. Ke1 {[%clk 0:01:49]}  Bxf3 {[%clk 0:02:13]} 13. gxf3 {[%clk 0:01:48]}  Nd4 {[%clk 0:02:13]} 14. Bxf6 {[%clk 0:01:26]}  gxf6 {[%clk 0:02:12]} 15. Rc1 {[%clk 0:01:21]}  Nxf3+ {[%clk 0:02:11]} 16. Ke2 {[%clk 0:01:07]}  Nd4+ {[%clk 0:02:10]} 17. Kf1 {[%clk 0:01:01]}  Bh6 {[%clk 0:02:05]} 18. Rd1 {[%clk 0:00:54]}  Rd7 {[%clk 0:01:57]} 19. Nd5 {[%clk 0:00:49]}  b5 {[%clk 0:01:39]} 20. Bd3 {[%clk 0:00:38]}  Rd6 {[%clk 0:01:23]} 21. Rg1 {[%clk 0:00:19]}  f5 {[%clk 0:01:13]} 22. Ne7+ {[%clk 0:00:15]}  Kb8 {[%clk 0:01:02]} 23. exf5 {[%clk 0:00:15]}  Re8 {[%clk 0:00:54]} 24. Ng8 {[%clk 0:00:14]}  Bf4 {[%clk 0:00:49]} 25. Rg7 {[%clk 0:00:07]}  Red8 {[%clk 0:00:34]} 26. f6 {[%clk 0:00:04]}  Ne6 {[%clk 0:00:29]} 0-1


[Site "https://www.chess.com"]

[Event "Titled Tuesday Blitz March 21 Late 2023"]
[White "Bortnyk, Olexandr"]
[Black "Gholami Orimi, Mahdi"]
[WhiteFideId "14120828"]
[BlackFideId "12558486"]
[WhiteElo "2734"]
[BlackElo "2363"]
[Result "0-1"]
[Round "08"]
[TimeControl "180+2"]
[Date "2023.03.21"]
[WhiteClock "0:00:04"]
[BlackClock "0:01:17"]

1. d4 {[%clk 0:03:00]}  Nf6 {[%clk 0:03:00]} 2. Nc3 {[%clk 0:03:01]}  d5 {[%clk 0:02:59]} 3. Bf4 {[%clk 0:03:01]}  e6 {[%clk 0:02:51]} 4. Nb5 {[%clk 0:03:01]}  Na6 {[%clk 0:02:48]} 5. e3 {[%clk 0:03:02]}  c6 {[%clk 0:02:48]} 6. Nc3 {[%clk 0:03:02]}  Bb4 {[%clk 0:02:48]} 7. Bxa6 {[%clk 0:03:00]}  bxa6 {[%clk 0:02:48]} 8. Nf3 {[%clk 0:03:00]}  Ne4 {[%clk 0:02:44]} 9. O-O {[%clk 0:02:56]}  Nxc3 {[%clk 0:02:37]} 10. bxc3 {[%clk 0:02:57]}  Bxc3 {[%clk 0:02:38]} 11. Rb1 {[%clk 0:02:55]}  O-O {[%clk 0:02:38]} 12. Ne5 {[%clk 0:02:46]}  Qe8 {[%clk 0:02:27]} 13. Qg4 {[%clk 0:01:55]}  f6 {[%clk 0:02:25]} 14. Bh6 {[%clk 0:01:55]}  Qe7 {[%clk 0:02:23]} 15. Nxc6 {[%clk 0:01:55]}  Qc7 {[%clk 0:02:23]} 16. Rb3 {[%clk 0:01:44]}  Bd2 {[%clk 0:02:11]} 17. Rd1 {[%clk 0:01:42]}  Rf7 {[%clk 0:02:08]} 18. Rxd2 {[%clk 0:01:12]}  Qxc6 {[%clk 0:02:08]} 19. Qg3 {[%clk 0:01:10]}  a5 {[%clk 0:02:02]} 20. h4 {[%clk 0:01:02]}  a4 {[%clk 0:01:55]} 21. Rb1 {[%clk 0:00:58]}  Ba6 {[%clk 0:01:54]} 22. Bf4 {[%clk 0:00:56]}  Rb7 {[%clk 0:01:47]} 23. Rxb7 {[%clk 0:00:54]}  Qxb7 {[%clk 0:01:48]} 24. Kh2 {[%clk 0:00:51]}  Bc4 {[%clk 0:01:45]} 25. a3 {[%clk 0:00:51]}  Kf7 {[%clk 0:01:37]} 26. Bd6 {[%clk 0:00:48]}  a5 {[%clk 0:01:34]} 27. Rd1 {[%clk 0:00:47]}  Qb2 {[%clk 0:01:31]} 28. Bc5 {[%clk 0:00:47]}  Qxc2 {[%clk 0:01:29]} 29. Qc7+ {[%clk 0:00:47]}  Kg6 {[%clk 0:01:28]} 30. Qg3+ {[%clk 0:00:19]}  Kf7 {[%clk 0:01:27]} 31. Re1 {[%clk 0:00:11]}  h5 {[%clk 0:01:25]} 32. Qc7+ {[%clk 0:00:06]}  Kg6 {[%clk 0:01:25]} 33. Kg3 {[%clk 0:00:07]}  Qf5 {[%clk 0:01:23]} 34. f3 {[%clk 0:00:07]}  e5 {[%clk 0:01:22]} 35. Qc6 {[%clk 0:00:04]}  Rb8 {[%clk 0:01:20]} 36. Qxa4 {[%clk 0:00:04]}  Rb2 {[%clk 0:01:18]} 37. Qxa5 {[%clk 0:00:04]}  Qc2 {[%clk 0:01:17]} 0-1


[Site "https://www.chess.com"]

[Event "Titled Tuesday Blitz March 21 Late 2023"]
[White "Movahed, Sina"]
[Black "Alekseenko, Kirill"]
[WhiteFideId "42520835"]
[BlackFideId "4135539"]
[WhiteElo "2225"]
[BlackElo "2683"]
[Result "1/2-1/2"]
[Round "08"]
[TimeControl "180+2"]
[Date "2023.03.21"]
[WhiteClock "0:00:11"]
[BlackClock "0:00:11"]

1. Nf3 {[%clk 0:03:00]}  d5 {[%clk 0:02:59]} 2. g3 {[%clk 0:03:00]}  Nd7 {[%clk 0:02:59]} 3. c4 {[%clk 0:02:59]}  dxc4 {[%clk 0:02:56]} 4. Qa4 {[%clk 0:02:59]}  c6 {[%clk 0:02:48]} 5. Qxc4 {[%clk 0:02:57]}  e5 {[%clk 0:02:48]} 6. Bg2 {[%clk 0:02:55]}  Bd6 {[%clk 0:02:46]} 7. O-O {[%clk 0:02:45]}  Ngf6 {[%clk 0:02:46]} 8. d4 {[%clk 0:02:41]}  O-O {[%clk 0:02:43]} 9. Nc3 {[%clk 0:02:33]}  h6 {[%clk 0:02:30]} 10. Rd1 {[%clk 0:02:28]}  e4 {[%clk 0:02:23]} 11. Ne5 {[%clk 0:02:24]}  Nb6 {[%clk 0:02:00]} 12. Qb3 {[%clk 0:02:21]}  Bf5 {[%clk 0:01:59]} 13. Bf4 {[%clk 0:02:15]}  Qe7 {[%clk 0:01:50]} 14. a4 {[%clk 0:02:06]}  Nbd5 {[%clk 0:01:50]} 15. a5 {[%clk 0:02:03]}  a6 {[%clk 0:01:47]} 16. Rac1 {[%clk 0:01:41]}  Kh8 {[%clk 0:01:45]} 17. Na4 {[%clk 0:01:34]}  Nxf4 {[%clk 0:01:44]} 18. gxf4 {[%clk 0:01:33]}  Nd5 {[%clk 0:01:45]} 19. e3 {[%clk 0:01:20]}  g5 {[%clk 0:01:45]} 20. f3 {[%clk 0:01:08]}  exf3 {[%clk 0:00:46]} 21. Bxf3 {[%clk 0:01:09]}  f6 {[%clk 0:00:46]} 22. e4 {[%clk 0:00:51]}  Nxf4 {[%clk 0:00:44]} 23. Nxc6 {[%clk 0:00:30]}  bxc6 {[%clk 0:00:33]} 24. exf5 {[%clk 0:00:29]}  g4 {[%clk 0:00:34]} 25. Re1 {[%clk 0:00:24]}  Qa7 {[%clk 0:00:33]} 26. Bxc6 {[%clk 0:00:22]}  Qxd4+ {[%clk 0:00:28]} 27. Qe3 {[%clk 0:00:20]}  Qxe3+ {[%clk 0:00:23]} 28. Rxe3 {[%clk 0:00:21]}  Rac8 {[%clk 0:00:23]} 29. Kf1 {[%clk 0:00:19]}  Be5 {[%clk 0:00:23]} 30. Nb6 {[%clk 0:00:16]}  Rc7 {[%clk 0:00:23]} 31. Rc4 {[%clk 0:00:15]}  Rd8 {[%clk 0:00:21]} 32. b4 {[%clk 0:00:13]}  Rd1+ {[%clk 0:00:21]} 33. Re1 {[%clk 0:00:13]}  Rd2 {[%clk 0:00:21]} 34. b5 {[%clk 0:00:12]}  axb5 {[%clk 0:00:14]} 35. Bxb5 {[%clk 0:00:13]}  Ra7 {[%clk 0:00:14]} 36. a6 {[%clk 0:00:12]}  Nh3 {[%clk 0:00:13]} 37. Re2 {[%clk 0:00:10]}  Rd1+ {[%clk 0:00:13]} 38. Re1 {[%clk 0:00:10]}  Rd2 {[%clk 0:00:14]} 39. Re2 {[%clk 0:00:10]}  Rd1+ {[%clk 0:00:13]} 40. Re1 {[%clk 0:00:11]}  Rd2 {[%clk 0:00:11]} 1/2-1/2


[Site "https://www.chess.com"]

[Event "Titled Tuesday Blitz March 21 Late 2023"]
[White "Hansen, Eric"]
[Black "Erigaisi Arjun"]
[WhiteFideId "2606771"]
[BlackFideId "35009192"]
[WhiteElo "2569"]
[BlackElo "2737"]
[Result "0-1"]
[Round "08"]
[TimeControl "180+2"]
[Date "2023.03.21"]
[WhiteClock "0:00:01"]
[BlackClock "0:00:25"]

1. c4 {[%clk 0:02:52]}  d6 {[%clk 0:02:59]} 2. d4 {[%clk 0:02:51]}  g6 {[%clk 0:02:59]} 3. Nc3 {[%clk 0:02:49]}  Bg7 {[%clk 0:02:59]} 4. e4 {[%clk 0:02:45]}  Nc6 {[%clk 0:02:58]} 5. Be3 {[%clk 0:02:44]}  e5 {[%clk 0:02:56]} 6. d5 {[%clk 0:02:45]}  Nce7 {[%clk 0:02:53]} 7. f3 {[%clk 0:02:35]}  f5 {[%clk 0:02:51]} 8. Bd3 {[%clk 0:02:33]}  Nf6 {[%clk 0:02:49]} 9. Nge2 {[%clk 0:02:34]}  O-O {[%clk 0:02:47]} 10. h3 {[%clk 0:02:31]}  c5 {[%clk 0:02:44]} 11. dxc6 {[%clk 0:02:27]}  bxc6 {[%clk 0:02:42]} 12. O-O {[%clk 0:02:24]}  f4 {[%clk 0:02:40]} 13. Bf2 {[%clk 0:02:24]}  g5 {[%clk 0:02:40]} 14. b4 {[%clk 0:02:24]}  h5 {[%clk 0:02:38]} 15. c5 {[%clk 0:02:10]}  d5 {[%clk 0:02:38]} 16. exd5 {[%clk 0:02:09]}  cxd5 {[%clk 0:02:39]} 17. Nb5 {[%clk 0:02:09]}  g4 {[%clk 0:02:35]} 18. hxg4 {[%clk 0:02:09]}  hxg4 {[%clk 0:02:36]} 19. Nd6 {[%clk 0:02:10]}  g3 {[%clk 0:01:56]} 20. Nxg3 {[%clk 0:02:09]}  fxg3 {[%clk 0:01:57]} 21. Bxg3 {[%clk 0:02:10]}  Nh5 {[%clk 0:01:58]} 22. Bh4 {[%clk 0:02:11]}  Bf6 {[%clk 0:01:55]} 23. Qe1 {[%clk 0:02:10]}  Nc6 {[%clk 0:01:48]} 24. Bg3 {[%clk 0:01:10]}  Nxb4 {[%clk 0:01:32]} 25. Bg6 {[%clk 0:01:10]}  e4 {[%clk 0:00:59]} 26. Bxh5 {[%clk 0:01:00]}  Bd4+ {[%clk 0:00:59]} 27. Bf2 {[%clk 0:00:56]}  Nd3 {[%clk 0:00:56]} 28. Qd2 {[%clk 0:00:25]}  Bxf2+ {[%clk 0:00:42]} 29. Rxf2 {[%clk 0:00:26]}  Qh4 {[%clk 0:00:42]} 30. Re2 {[%clk 0:00:03]}  Qxh5 {[%clk 0:00:34]} 31. fxe4 {[%clk 0:00:04]}  Bg4 {[%clk 0:00:35]} 32. Re3 {[%clk 0:00:03]}  Nf4 {[%clk 0:00:35]} 33. Rae1 {[%clk 0:00:01]}  Qg5 {[%clk 0:00:27]} 34. Qd4 {[%clk 0:00:01]}  Bf3 {[%clk 0:00:25]} 0-1


[Site "https://www.chess.com"]

[Event "Titled Tuesday Blitz March 21 Late 2023"]
[White "Svane, Rasmus"]
[Black "Steinberg, Nitzan"]
[WhiteFideId "4657101"]
[BlackFideId "2801795"]
[WhiteElo "2597"]
[BlackElo "2486"]
[Result "1-0"]
[Round "08"]
[TimeControl "180+2"]
[Date "2023.03.21"]
[WhiteClock "0:00:42"]
[BlackClock "0:00:01"]

1. Nf3 {[%clk 0:03:00]}  d5 {[%clk 0:02:59]} 2. g3 {[%clk 0:03:01]}  Nf6 {[%clk 0:02:57]} 3. Bg2 {[%clk 0:03:01]}  g6 {[%clk 0:02:57]} 4. O-O {[%clk 0:03:00]}  Bg7 {[%clk 0:02:58]} 5. c4 {[%clk 0:03:01]}  c6 {[%clk 0:02:58]} 6. Qb3 {[%clk 0:03:01]}  O-O {[%clk 0:02:57]} 7. d4 {[%clk 0:03:01]}  dxc4 {[%clk 0:02:55]} 8. Qxc4 {[%clk 0:03:02]}  Nbd7 {[%clk 0:02:56]} 9. Qc2 {[%clk 0:02:59]}  Nb6 {[%clk 0:02:49]} 10. e4 {[%clk 0:03:00]}  Bg4 {[%clk 0:02:45]} 11. Be3 {[%clk 0:02:59]}  Qc8 {[%clk 0:02:41]} 12. Nc3 {[%clk 0:02:54]}  Bh3 {[%clk 0:02:38]} 13. Rad1 {[%clk 0:02:52]}  Bxg2 {[%clk 0:02:35]} 14. Kxg2 {[%clk 0:02:53]}  Rd8 {[%clk 0:02:34]} 15. h3 {[%clk 0:02:51]}  Ne8 {[%clk 0:02:26]} 16. Bg5 {[%clk 0:02:47]}  Qc7 {[%clk 0:01:55]} 17. Bf4 {[%clk 0:02:46]}  Qc8 {[%clk 0:01:54]} 18. Rfe1 {[%clk 0:02:46]}  Nc7 {[%clk 0:01:53]} 19. h4 {[%clk 0:02:44]}  Ne6 {[%clk 0:01:52]} 20. Be3 {[%clk 0:02:23]}  Nc4 {[%clk 0:01:49]} 21. Bc1 {[%clk 0:02:23]}  Nb6 {[%clk 0:01:39]} 22. Ne2 {[%clk 0:02:17]}  a5 {[%clk 0:01:36]} 23. h5 {[%clk 0:02:17]}  a4 {[%clk 0:01:33]} 24. Be3 {[%clk 0:02:16]}  Nd7 {[%clk 0:01:28]} 25. hxg6 {[%clk 0:02:10]}  hxg6 {[%clk 0:01:27]} 26. Rh1 {[%clk 0:02:09]}  Nf6 {[%clk 0:01:26]} 27. Nc3 {[%clk 0:02:10]}  a3 {[%clk 0:01:23]} 28. b3 {[%clk 0:02:06]}  Ra5 {[%clk 0:01:23]} 29. e5 {[%clk 0:01:55]}  Nd5 {[%clk 0:01:12]} 30. Nxd5 {[%clk 0:01:56]}  cxd5 {[%clk 0:01:10]} 31. Qd2 {[%clk 0:01:56]}  Ra6 {[%clk 0:00:59]} 32. Bh6 {[%clk 0:01:56]}  Bh8 {[%clk 0:00:57]} 33. Bg5 {[%clk 0:01:52]}  Qd7 {[%clk 0:00:45]} 34. Rxh8+ {[%clk 0:01:47]}  Kxh8 {[%clk 0:00:45]} 35. Rh1+ {[%clk 0:01:47]}  Kg8 {[%clk 0:00:44]} 36. Bf6 {[%clk 0:01:46]}  exf6 {[%clk 0:00:18]} 37. Qh6 {[%clk 0:01:45]}  Nf4+ {[%clk 0:00:19]} 38. Qxf4 {[%clk 0:01:33]}  g5 {[%clk 0:00:17]} 39. Qe3 {[%clk 0:01:04]}  Qf5 {[%clk 0:00:17]} 40. exf6 {[%clk 0:01:02]}  Rxf6 {[%clk 0:00:18]} 41. Nxg5 {[%clk 0:01:01]}  Rc8 {[%clk 0:00:11]} 42. Rh4 {[%clk 0:00:59]}  Rg6 {[%clk 0:00:09]} 43. Nf3 {[%clk 0:00:56]}  Re6 {[%clk 0:00:08]} 44. Ne5 {[%clk 0:00:48]}  Rc2 {[%clk 0:00:06]} 45. Rf4 {[%clk 0:00:46]}  Qg5 {[%clk 0:00:03]} 46. Qf3 {[%clk 0:00:43]}  f6 {[%clk 0:00:02]} 47. Rg4 {[%clk 0:00:43]}  Rxe5 {[%clk 0:00:01]} 48. dxe5 {[%clk 0:00:43]}  Rxa2 {[%clk 0:00:01]} 49. exf6 {[%clk 0:00:42]} 1-0


[Site "https://www.chess.com"]

[Event "Titled Tuesday Blitz March 21 Late 2023"]
[White "Grigoriants, Sergey"]
[Black "Bluebaum, Matthias"]
[WhiteFideId "4130804"]
[BlackFideId "24651516"]
[WhiteElo "2502"]
[BlackElo "2638"]
[Result "0-1"]
[Round "08"]
[TimeControl "180+2"]
[Date "2023.03.21"]
[WhiteClock "0:00:03"]
[BlackClock "0:00:23"]

1. d4 {[%clk 0:02:56]}  d5 {[%clk 0:02:59]} 2. c4 {[%clk 0:02:55]}  e6 {[%clk 0:03:00]} 3. Nc3 {[%clk 0:02:55]}  Bb4 {[%clk 0:03:00]} 4. e3 {[%clk 0:02:53]}  Nf6 {[%clk 0:03:00]} 5. a3 {[%clk 0:02:52]}  Bxc3+ {[%clk 0:02:59]} 6. bxc3 {[%clk 0:02:53]}  c6 {[%clk 0:03:00]} 7. Bd3 {[%clk 0:02:46]}  e5 {[%clk 0:03:00]} 8. cxd5 {[%clk 0:02:45]}  e4 {[%clk 0:02:59]} 9. Be2 {[%clk 0:02:34]}  cxd5 {[%clk 0:02:57]} 10. c4 {[%clk 0:02:34]}  O-O {[%clk 0:02:54]} 11. Nh3 {[%clk 0:02:32]}  Bxh3 {[%clk 0:02:22]} 12. gxh3 {[%clk 0:02:31]}  dxc4 {[%clk 0:02:23]} 13. Bxc4 {[%clk 0:02:28]}  Qd7 {[%clk 0:02:23]} 14. Bb2 {[%clk 0:02:14]}  Qxh3 {[%clk 0:02:23]} 15. Qe2 {[%clk 0:02:02]}  Nbd7 {[%clk 0:02:21]} 16. O-O-O {[%clk 0:02:00]}  Rac8 {[%clk 0:01:26]} 17. Kb1 {[%clk 0:01:59]}  Qg4 {[%clk 0:01:19]} 18. Rhg1 {[%clk 0:01:51]}  Qxe2 {[%clk 0:01:18]} 19. Bxe2 {[%clk 0:01:52]}  Nd5 {[%clk 0:01:17]} 20. h4 {[%clk 0:01:35]}  N7b6 {[%clk 0:01:14]} 21. h5 {[%clk 0:01:34]}  Na4 {[%clk 0:01:13]} 22. Rd2 {[%clk 0:01:23]}  Nac3+ {[%clk 0:01:07]} 23. Bxc3 {[%clk 0:01:23]}  Nxc3+ {[%clk 0:01:06]} 24. Kb2 {[%clk 0:01:24]}  Nxe2 {[%clk 0:01:02]} 25. Rxe2 {[%clk 0:01:25]}  Rc6 {[%clk 0:01:03]} 26. Rd2 {[%clk 0:01:12]}  f5 {[%clk 0:00:59]} 27. d5 {[%clk 0:00:40]}  Rd6 {[%clk 0:00:55]} 28. Kc3 {[%clk 0:00:38]}  Kf7 {[%clk 0:00:44]} 29. Rgd1 {[%clk 0:00:23]}  Kf6 {[%clk 0:00:40]} 30. Kd4 {[%clk 0:00:19]}  Rc8 {[%clk 0:00:38]} 31. a4 {[%clk 0:00:15]}  b6 {[%clk 0:00:39]} 32. f3 {[%clk 0:00:10]}  exf3 {[%clk 0:00:39]} 33. e4 {[%clk 0:00:09]}  Re8 {[%clk 0:00:33]} 34. exf5 {[%clk 0:00:07]}  Kxf5 {[%clk 0:00:34]} 35. Kc4 {[%clk 0:00:07]}  Re4+ {[%clk 0:00:31]} 36. Kb5 {[%clk 0:00:07]}  Kf4 {[%clk 0:00:27]} 37. Ka6 {[%clk 0:00:03]}  Re2 {[%clk 0:00:23]} 38. Kb7 {[%clk 0:00:04]}  Rxd2 {[%clk 0:00:22]} 39. Rxd2 {[%clk 0:00:03]}  Ke3 {[%clk 0:00:23]} 0-1


[Site "https://www.chess.com"]

[Event "Titled Tuesday Blitz March 21 Late 2023"]
[White "Svane, Frederik"]
[Black "Sargsyan, Shant"]
[WhiteFideId "12923044"]
[BlackFideId "13306766"]
[WhiteElo "2502"]
[BlackElo "2628"]
[Result "0-1"]
[Round "08"]
[TimeControl "180+2"]
[Date "2023.03.21"]
[WhiteClock "0:00:17"]
[BlackClock "0:00:15"]

1. e4 {[%clk 0:03:00]}  c6 {[%clk 0:02:58]} 2. d4 {[%clk 0:03:01]}  d5 {[%clk 0:02:59]} 3. exd5 {[%clk 0:03:02]}  cxd5 {[%clk 0:03:00]} 4. c3 {[%clk 0:03:02]}  Nf6 {[%clk 0:03:00]} 5. Nf3 {[%clk 0:03:02]}  Nc6 {[%clk 0:03:00]} 6. Ne5 {[%clk 0:03:02]}  Bd7 {[%clk 0:02:59]} 7. Bd3 {[%clk 0:03:01]}  e6 {[%clk 0:02:57]} 8. O-O {[%clk 0:03:00]}  Bd6 {[%clk 0:02:57]} 9. Qe2 {[%clk 0:02:56]}  Qc7 {[%clk 0:02:56]} 10. Nxd7 {[%clk 0:02:54]}  Nxd7 {[%clk 0:02:55]} 11. h3 {[%clk 0:02:48]}  Bh2+ {[%clk 0:02:53]} 12. Kh1 {[%clk 0:02:48]}  Bf4 {[%clk 0:02:54]} 13. Nd2 {[%clk 0:02:47]}  g6 {[%clk 0:02:51]} 14. Re1 {[%clk 0:02:47]}  O-O {[%clk 0:02:50]} 15. Nf3 {[%clk 0:02:46]}  Rae8 {[%clk 0:02:47]} 16. Bxf4 {[%clk 0:02:37]}  Qxf4 {[%clk 0:02:48]} 17. Qe3 {[%clk 0:02:38]}  Qxe3 {[%clk 0:02:45]} 18. Rxe3 {[%clk 0:02:39]}  Kg7 {[%clk 0:02:42]} 19. Rae1 {[%clk 0:02:39]}  a6 {[%clk 0:02:41]} 20. g4 {[%clk 0:02:25]}  h6 {[%clk 0:02:40]} 21. Kg2 {[%clk 0:02:25]}  Nf6 {[%clk 0:02:37]} 22. Kg3 {[%clk 0:02:23]}  b5 {[%clk 0:02:28]} 23. h4 {[%clk 0:02:21]}  Rb8 {[%clk 0:02:28]} 24. a3 {[%clk 0:02:14]}  a5 {[%clk 0:02:27]} 25. b4 {[%clk 0:02:13]}  Rfc8 {[%clk 0:02:24]} 26. Nd2 {[%clk 0:02:00]}  a4 {[%clk 0:02:22]} 27. f3 {[%clk 0:01:56]}  Ne8 {[%clk 0:02:17]} 28. f4 {[%clk 0:01:51]}  Nd8 {[%clk 0:02:12]} 29. Nb1 {[%clk 0:01:37]}  Nd6 {[%clk 0:02:10]} 30. f5 {[%clk 0:01:37]}  gxf5 {[%clk 0:02:00]} 31. gxf5 {[%clk 0:01:37]}  exf5 {[%clk 0:02:01]} 32. Re5 {[%clk 0:01:27]}  Ne4+ {[%clk 0:01:25]} 33. Bxe4 {[%clk 0:01:27]}  fxe4 {[%clk 0:01:25]} 34. Rxd5 {[%clk 0:01:27]}  Ne6 {[%clk 0:01:26]} 35. Rxe4 {[%clk 0:01:27]}  Kf6 {[%clk 0:01:26]} 36. Ree5 {[%clk 0:01:07]}  Rg8+ {[%clk 0:01:26]} 37. Kf3 {[%clk 0:01:07]}  Rbc8 {[%clk 0:01:15]} 38. Rf5+ {[%clk 0:01:03]}  Ke7 {[%clk 0:01:12]} 39. Rxb5 {[%clk 0:01:02]}  Rg1 {[%clk 0:01:12]} 40. Rb7+ {[%clk 0:01:02]}  Ke8 {[%clk 0:00:51]} 41. d5 {[%clk 0:00:48]}  Nd8 {[%clk 0:00:29]} 42. d6 {[%clk 0:00:34]}  Nxb7 {[%clk 0:00:26]} 43. Re5+ {[%clk 0:00:15]}  Kd7 {[%clk 0:00:26]} 44. Nd2 {[%clk 0:00:13]}  Rxc3+ {[%clk 0:00:26]} 45. Kf2 {[%clk 0:00:14]}  Rd1 {[%clk 0:00:16]} 46. Ne4 {[%clk 0:00:13]}  Rc2+ {[%clk 0:00:14]} 47. Kf3 {[%clk 0:00:14]}  Nxd6 {[%clk 0:00:13]} 48. Nc5+ {[%clk 0:00:14]}  Kc6 {[%clk 0:00:14]} 49. Nxa4 {[%clk 0:00:15]}  Rd3+ {[%clk 0:00:13]} 50. Kg4 {[%clk 0:00:16]}  Rxa3 {[%clk 0:00:12]} 51. Nc5 {[%clk 0:00:15]}  Rc4+ {[%clk 0:00:13]} 52. Kh5 {[%clk 0:00:15]}  Rxb4 {[%clk 0:00:13]} 53. Kxh6 {[%clk 0:00:12]}  Rb5 {[%clk 0:00:13]} 54. h5 {[%clk 0:00:07]}  Rxc5 {[%clk 0:00:13]} 55. Re1 {[%clk 0:00:08]}  Raa5 {[%clk 0:00:12]} 56. Kg7 {[%clk 0:00:09]}  Rg5+ {[%clk 0:00:12]} 57. Kf8 {[%clk 0:00:09]}  Ra8+ {[%clk 0:00:12]} 58. Ke7 {[%clk 0:00:09]}  Re8+ {[%clk 0:00:13]} 59. Kf6 {[%clk 0:00:10]}  Rf5+ {[%clk 0:00:13]} 60. Kg7 {[%clk 0:00:10]}  Rxe1 {[%clk 0:00:13]} 61. h6 {[%clk 0:00:11]}  Rg1+ {[%clk 0:00:13]} 62. Kh8 {[%clk 0:00:11]}  Ra5 {[%clk 0:00:13]} 63. Kh7 {[%clk 0:00:11]}  f5 {[%clk 0:00:13]} 64. Kh8 {[%clk 0:00:12]}  f4 {[%clk 0:00:14]} 65. Kh7 {[%clk 0:00:13]}  f3 {[%clk 0:00:14]} 66. Kh8 {[%clk 0:00:14]}  f2 {[%clk 0:00:15]} 67. Kh7 {[%clk 0:00:15]}  f1=Q {[%clk 0:00:15]} 68. Kh8 {[%clk 0:00:16]}  Qf8+ {[%clk 0:00:15]} 69. Kh7 {[%clk 0:00:17]}  Qg8# {[%clk 0:00:15]} 0-1


[Site "https://www.chess.com"]

[Event "Titled Tuesday Blitz March 21 Late 2023"]
[White "Matlakov, Maxim"]
[Black "Li, Ruifeng"]
[WhiteFideId "4168003"]
[BlackFideId "2061074"]
[WhiteElo "2666"]
[BlackElo "2441"]
[Result "1-0"]
[Round "08"]
[TimeControl "180+2"]
[Date "2023.03.21"]
[WhiteClock "0:00:59"]
[BlackClock "0:00:04"]

1. e4 {[%clk 0:03:00]}  d6 {[%clk 0:02:59]} 2. d4 {[%clk 0:02:59]}  Nf6 {[%clk 0:03:00]} 3. Bd3 {[%clk 0:02:59]}  Nc6 {[%clk 0:02:58]} 4. c3 {[%clk 0:02:58]}  e5 {[%clk 0:02:57]} 5. Nf3 {[%clk 0:02:58]}  g6 {[%clk 0:02:57]} 6. h3 {[%clk 0:02:57]}  Bg7 {[%clk 0:02:58]} 7. O-O {[%clk 0:02:57]}  O-O {[%clk 0:02:58]} 8. Re1 {[%clk 0:02:57]}  Bd7 {[%clk 0:02:58]} 9. Nbd2 {[%clk 0:02:52]}  h6 {[%clk 0:02:58]} 10. Nf1 {[%clk 0:02:50]}  Nh7 {[%clk 0:02:49]} 11. dxe5 {[%clk 0:02:43]}  Nxe5 {[%clk 0:02:47]} 12. Nxe5 {[%clk 0:02:43]}  dxe5 {[%clk 0:02:48]} 13. a4 {[%clk 0:02:39]}  a5 {[%clk 0:02:41]} 14. Qe2 {[%clk 0:02:32]}  Ng5 {[%clk 0:02:41]} 15. Ne3 {[%clk 0:02:31]}  Ne6 {[%clk 0:02:40]} 16. Nc4 {[%clk 0:02:30]}  Qe7 {[%clk 0:02:21]} 17. Be3 {[%clk 0:02:30]}  Nc5 {[%clk 0:02:17]} 18. Bc2 {[%clk 0:02:30]}  b5 {[%clk 0:02:17]} 19. Nxa5 {[%clk 0:02:20]}  Nxa4 {[%clk 0:02:07]} 20. Nb7 {[%clk 0:02:12]}  Rfb8 {[%clk 0:01:44]} 21. Bxa4 {[%clk 0:02:12]}  Rxb7 {[%clk 0:01:42]} 22. Bb3 {[%clk 0:02:12]}  Rbb8 {[%clk 0:01:42]} 23. Red1 {[%clk 0:02:07]}  c6 {[%clk 0:01:34]} 24. Rxa8 {[%clk 0:02:04]}  Rxa8 {[%clk 0:01:34]} 25. Qd2 {[%clk 0:02:04]}  Be6 {[%clk 0:01:34]} 26. Bxe6 {[%clk 0:02:03]}  Qxe6 {[%clk 0:01:35]} 27. Bxh6 {[%clk 0:02:04]}  Kh7 {[%clk 0:01:23]} 28. Bg5 {[%clk 0:02:03]}  Ra2 {[%clk 0:01:18]} 29. Qe2 {[%clk 0:01:56]}  Bf6 {[%clk 0:01:13]} 30. Be3 {[%clk 0:01:54]}  Be7 {[%clk 0:01:08]} 31. Rd2 {[%clk 0:01:54]}  Kg7 {[%clk 0:01:03]} 32. Kh2 {[%clk 0:01:54]}  Qb3 {[%clk 0:00:55]} 33. g3 {[%clk 0:01:51]}  Ra1 {[%clk 0:00:53]} 34. h4 {[%clk 0:01:51]}  Qa2 {[%clk 0:00:53]} 35. Rd7 {[%clk 0:01:43]}  Qe6 {[%clk 0:00:36]} 36. Rb7 {[%clk 0:01:43]}  Rb1 {[%clk 0:00:29]} 37. h5 {[%clk 0:01:41]}  g5 {[%clk 0:00:18]} 38. Kg2 {[%clk 0:01:38]}  Kh6 {[%clk 0:00:16]} 39. Qf3 {[%clk 0:01:28]}  Rxb2 {[%clk 0:00:15]} 40. Qf5 {[%clk 0:01:23]}  Qxf5 {[%clk 0:00:13]} 41. exf5 {[%clk 0:01:24]}  Ba3 {[%clk 0:00:07]} 42. Rxf7 {[%clk 0:01:24]}  Kxh5 {[%clk 0:00:05]} 43. Rh7+ {[%clk 0:01:23]}  Kg4 {[%clk 0:00:06]} 44. f6 {[%clk 0:01:22]}  Kf5 {[%clk 0:00:06]} 45. f7 {[%clk 0:01:22]}  Kg6 {[%clk 0:00:06]} 46. Rh8 {[%clk 0:01:17]}  Kxf7 {[%clk 0:00:07]} 47. Rc8 {[%clk 0:01:18]}  c5 {[%clk 0:00:06]} 48. Bxg5 {[%clk 0:01:16]}  Ke6 {[%clk 0:00:06]} 49. Be3 {[%clk 0:01:16]}  Kd5 {[%clk 0:00:07]} 50. g4 {[%clk 0:01:16]}  b4 {[%clk 0:00:05]} 51. Rxc5+ {[%clk 0:01:16]}  Ke4 {[%clk 0:00:05]} 52. Ra5 {[%clk 0:01:10]}  Rb3 {[%clk 0:00:04]} 53. c4 {[%clk 0:01:10]}  Rc3 {[%clk 0:00:02]} 54. c5 {[%clk 0:01:10]}  Bc1 {[%clk 0:00:02]} 55. Bxc1 {[%clk 0:01:04]}  Rxc1 {[%clk 0:00:03]} 56. Rb5 {[%clk 0:01:05]}  Rc4 {[%clk 0:00:02]} 57. Kg3 {[%clk 0:01:04]}  Rc3+ {[%clk 0:00:02]} 58. Kh4 {[%clk 0:01:05]}  b3 {[%clk 0:00:01]} 59. Kh5 {[%clk 0:00:59]}  Kf3 {[%clk 0:00:01]} 60. g5 {[%clk 0:00:58]}  Kxf2 {[%clk 0:00:02]} 61. g6 {[%clk 0:00:59]}  Rh3+ {[%clk 0:00:03]} 62. Kg4 {[%clk 0:00:59]}  e4 {[%clk 0:00:04]} 63. Kxh3 {[%clk 0:00:59]}  e3 {[%clk 0:00:04]} 64. Rxb3 {[%clk 0:00:59]} 1-0


[Site "https://www.chess.com"]